fUST/lending_fUST_20251018
["ID","MTS","AMOUNT","RATE_DAILY","PERIOD"]
[391766271,1760786695765,500.0,0.0003401,120]
[391766272,1760786696474,500.0,0.0003401,120]
[391766273,1760786697911,190.00116363,0.0003401,120]
[391766274,1760786707332,500.0,0.0003401,120]
[391766275,1760786707758,170.0,0.00029041,120]
[391766276,1760786711566,363.82705571,0.0003401,120]
[391766277,1760786715044,500.0,0.0003401,120]
[391766278,1760786716947,500.0,0.0003401,120]
[391766279,1760786717807,500.0,0.0003401,120]
[391766280,1760786719873,515.78183567,0.0003401,120]
[391766281,1760786722172,500.0,0.0003401,120]
[391766282,1760786727005,177.0,0.00029041,120]
[391766283,1760786734374,500.0,0.0003401,120]
[391766284,1760786736059,502.42331847,0.0003401,120]
[391766285,1760786736336,500.0,0.0003401,120]
[391766286,1760786739424,500.0,0.0003401,120]
[391766287,1760786744759,500.0,0.0003401,120]
[391766288,1760786748965,500.0,0.0003401,120]
[391766289,1760786754675,500.0,0.0003401,120]
[391766290,1760786757551,500.0,0.0003401,120]
[391766292,1760786763039,500.0,0.0003401,120]
[391766293,1760786765432,500.0,0.0003401,120]
[391766294,1760786768912,500.0,0.0003401,120]
[391766295,1760786771078,500.0,0.0003401,120]
[391766296,1760786774594,500.0,0.0003401,120]
[391766297,1760786775183,500.0,0.0003401,120]
[391766298,1760786778878,500.0,0.0003401,120]
[391766299,1760786780851,500.0,0.0003401,120]
[391766300,1760786782983,500.0,0.0003401,120]
[391766301,1760786786642,500.0,0.0003401,120]
[391766302,1760786788613,500.0,0.0003401,120]
[391766303,1760786790552,500.0,0.0003401,120]
[391766304,1760786792526,521.82333849,0.0003401,120]
[391766305,1760786794489,500.0,0.0003401,120]
[391766306,1760786796440,500.0,0.0003401,120]
[391766307,1760786800116,500.0,0.0003401,120]
[391766308,1760786803956,160.65666529,0.0003401,120]
[391766309,1760786806256,508.25562482,0.0003401,120]
[391766310,1760786806835,267.12130933,0.0003401,120]
[391766311,1760786808269,500.0,0.0003401,120]
[391766312,1760786811929,500.0,0.0003401,120]
[391766313,1760786813194,247.56490172,0.0003401,120]
[391766314,1760786814946,327.85166681,0.0003401,120]
[391766315,1760786816662,481.81365062,0.0003401,120]
[391766316,1760786838441,500.0,0.0003401,120]
[391766317,1760786845978,10000.01,0.0002,7]
[391766318,1760786846000,10000.01,0.0002,7]
[391766319,1760786846022,10000.01,0.0002,7]
[391766320,1760786846043,10000.01,0.0002,7]
[391766321,1760786846065,10000.01,0.0002,7]
[391766322,1760786846086,10000.01,0.0002,7]
[391766323,1760786846107,10000.01,0.0002,7]
[391766324,1760786846129,9015.93,0.0002,7]
[391766326,1760786910177,687.32175106,0.0001,7]
[391766327,1760786912731,296.75824894,0.00015,2]
[391766328,1760786912754,10000.01,0.00015,2]
[391766329,1760786912776,9016.32795734,0.00015,2]
[391766330,1760786918194,213.46153744,0.00016,2]
[391766331,1760786919767,3400.0000001,0.000275,120]
[391766332,1760786934678,-785.90930638,0.00024142,2]
[391766337,1760786949677,8428.19138724,0.00023521,2]
[391766338,1760786949699,2292.54972666,0.00023521,2]
[391766372,1760787032587,-181.01111168,0.00024444,2]
[391766373,1760787032597,-300.0,0.00024444,2]
[391766374,1760787032606,-300.0,0.00024444,2]
[391766375,1760787032616,-200.0,0.00024444,2]
[391766376,1760787032625,-13490.19364815,0.00024445,2]
[391766377,1760787032635,-168.0,0.00024445,2]
[391766378,1760787032644,-8536.76574765,0.00024473,2]
[391766379,1760787032653,-1338.45472331,0.00024473,2]
[391766380,1760787032663,-502.84977898,0.00024523,9]
[391766381,1760787032672,-500.0,0.00024523,9]
[391766382,1760787032681,-200.16359777,0.00024556,2]
[391766383,1760787032690,-213.89936968,0.00024556,2]
[391766384,1760787032700,-150.0,0.00024556,2]
[391766385,1760787032710,-98859.39863896,0.00024557,2]
[391766403,1760787038132,-271140.59445376,0.00024557,2]
[391766405,1760787038142,-500.0,0.00024573,2]
[391766407,1760787038151,-500.0,0.00024573,2]
[391766409,1760787038161,-500.0,0.00024573,2]
[391766410,1760787038171,-500.0,0.00024573,2]
[391766411,1760787038180,-500.0,0.00024573,2]
[391766412,1760787038190,-500.0,0.00024573,2]
[391766413,1760787038199,-500.0,0.00024573,2]
[391766414,1760787038209,-500.0,0.00024573,2]
[391766415,1760787038218,-500.0,0.00024573,2]
[391766416,1760787038228,-500.0,0.00024573,2]
[391766417,1760787038238,-500.0,0.00024573,2]
[391766418,1760787038248,-500.0,0.00024573,2]
[391766419,1760787038257,-500.0,0.00024573,2]
[391766420,1760787038266,-500.0,0.00024573,2]
[391766421,1760787038276,-500.0,0.00024573,2]
[391766422,1760787038285,-500.0,0.00024573,2]
[391766423,1760787038294,-500.0,0.00024573,2]
[391766424,1760787038304,-500.0,0.00024573,2]
[391766425,1760787038313,-500.0,0.00024573,2]
[391766426,1760787038322,-500.0,0.00024573,2]
[391766427,1760787038332,-500.0,0.00024573,2]
[391766428,1760787038341,-500.0,0.00024573,2]
[391766429,1760787038351,-500.0,0.00024573,2]
[391766430,1760787038361,-500.0,0.00024573,2]
[391766431,1760787038371,-500.0,0.00024573,2]
[391766432,1760787038379,-462.17415029,0.00024573,2]
[391766433,1760787038389,-500.0,0.00024573,2]
[391766434,1760787038398,-500.0,0.00024573,2]
[391766435,1760787038407,-168.0,0.00024603,2]
[391766436,1760787038417,-500.0,0.00024657,2]
[391766437,1760787038427,-250.0,0.00024657,2]
[391766438,1760787038438,-250.0,0.00024657,2]
[391766439,1760787038448,-250.0,0.00024657,2]
[391766440,1760787038457,-250.0,0.00024657,2]
[391766441,1760787038468,-1000.0,0.00024657,2]
[391766442,1760787038478,-500.0,0.00024657,2]
[391766443,1760787038488,-500.0,0.00024657,2]
[391766444,1760787038498,-500.0,0.00024657,2]
[391766445,1760787038508,-500.0,0.00024657,2]
[391766446,1760787038517,-456.26,0.00024657,2]
[391766447,1760787038526,-500.0,0.00024657,2]
[391766448,1760787038536,-1000.0,0.00024657,2]
[391766449,1760787038547,-1000.0,0.00024657,2]
[391766450,1760787038556,-500.0,0.00024657,2]
[391766451,1760787038566,-500.0,0.00024657,2]
[391766452,1760787038576,-500.0,0.00024657,2]
[391766453,1760787038586,-500.0,0.00024657,2]
[391766454,1760787038595,-572.52,0.00024657,2]
[391766455,1760787038605,-380.0,0.00024658,2]
[391766456,1760787038615,-186.05955477,0.00024685,14]
[391766457,1760787038624,-8536.76574762,0.00024685,2]
[391766458,1760787038634,-408.43752199,0.00024698,2]
[391766459,1760787038644,-10053.80316414,0.00024774,2]
[391766460,1760787038654,-9043.9946828,0.000248,2]
[391766461,1760787038663,-28679.06065198,0.000248,3]
[391766462,1760787038672,-298.0,0.00024811,2]
[391766463,1760787038682,-904.39946828,0.00024863,2]
[391766464,1760787038692,-500.0,0.00024873,2]
[391766465,1760787038702,-500.93274379,0.00024873,2]
[391766466,1760787038711,-500.0,0.00024873,2]
[391766467,1760787038720,-500.0,0.00024873,2]
[391766468,1760787038729,-500.0,0.00024873,2]
[391766469,1760787038739,-500.40809648,0.00024873,2]
[391766470,1760787038749,-596.93575148,0.00024873,2]
[391766471,1760787038759,-500.0,0.00024873,2]
[391766472,1760787038768,-500.0,0.00024873,2]
[391766473,1760787038778,-500.0,0.00024873,2]
[391766474,1760787038787,-500.0,0.00024873,2]
[391766475,1760787038797,-508.61918935,0.00024873,2]
[391766476,1760787038806,-638.23397939,0.00024873,2]
[391766477,1760787038815,-500.0,0.00024873,2]
[391766478,1760787038824,-500.0,0.00024873,2]
[391766479,1760787038834,-500.0,0.00024873,2]
[391766480,1760787038844,-500.0,0.00024873,2]
[391766481,1760787038854,-500.0,0.00024873,2]
[391766482,1760787038863,-500.8873304,0.00024873,2]
[391766483,1760787038873,-506.95259966,0.00024873,2]
[391766484,1760787038882,-500.0,0.00024873,2]
[391766485,1760787038893,-500.0,0.00024873,2]
[391766486,1760787038902,-500.0,0.00024873,2]
[391766487,1760787038912,-158.0,0.00024873,2]
[391766488,1760787038922,-160.0,0.00024873,2]
[391766489,1760787038932,-158.4,0.00024873,2]
[391766490,1760787038942,-158.4,0.00024873,2]
[391766491,1760787038952,-158.0,0.00024873,2]
[391766492,1760787038961,-158.0,0.00024873,2]
[391766493,1760787038971,-158.2,0.00024873,2]
[391766494,1760787038980,-158.4,0.00024873,2]
[391766495,1760787038990,-158.4,0.00024873,2]
[391766496,1760787038999,-160.0,0.00024873,2]
[391766497,1760787039008,-158.4,0.00024873,2]
[391766498,1760787039018,-188.4,0.00024873,2]
[391766499,1760787039028,-158.0,0.00024873,2]
[391766500,1760787039038,-500.0,0.00024873,2]
[391766501,1760787039048,-158.4,0.00024873,2]
[391766502,1760787039057,-158.0,0.00024873,2]
[391766503,1760787039067,-160.0,0.00024873,2]
[391766504,1760787039077,-158.4,0.00024873,2]
[391766505,1760787039087,-159.67236693,0.00024873,2]
[391766506,1760787039096,-158.4,0.00024873,2]
[391766507,1760787039106,-158.0,0.00024873,2]
[391766508,1760787039115,-236.0,0.00024873,2]
[391766509,1760787039125,-500.0,0.00024873,2]
[391766510,1760787039134,-500.0,0.00024873,2]
[391766511,1760787039144,-630.47138155,0.00024873,2]
[391766512,1760787039153,-502.4314613,0.00024873,2]
[391766513,1760787039163,-500.0,0.00024873,2]
[391766514,1760787039172,-500.87588779,0.00024873,2]
[391766515,1760787039181,-302.09325653,0.00024873,2]
[391766516,1760787039191,-500.0,0.00024873,2]
[391766517,1760787039201,-500.0,0.00024873,2]
[391766518,1760787039210,-500.0,0.00024873,2]
[391766519,1760787039219,-237.76,0.00024873,2]
[391766520,1760787039229,-500.0,0.00024873,2]
[391766521,1760787039238,-500.0,0.00024873,2]
[391766522,1760787039248,-159.76620504,0.00024873,2]
[391766523,1760787039257,-500.0,0.00024873,2]
[391766524,1760787039267,-160.0,0.00024873,2]
[391766525,1760787039277,-158.4,0.00024873,2]
[391766526,1760787039286,-158.4,0.00024873,2]
[391766527,1760787039295,-159.0,0.00024873,2]
[391766528,1760787039304,-158.0,0.00024873,2]
[391766529,1760787039313,-158.0,0.00024873,2]
[391766530,1760787039323,-500.0,0.00024873,2]
[391766531,1760787039332,-500.0,0.00024873,2]
[391766532,1760787039342,-158.4,0.00024873,2]
[391766533,1760787039351,-160.0,0.00024873,2]
[391766534,1760787039360,-158.4,0.00024873,2]
[391766535,1760787039369,-158.0,0.00024873,2]
[391766536,1760787039378,-158.0,0.00024873,2]
[391766537,1760787039387,-500.0,0.00024873,2]
[391766538,1760787039397,-502.11051514,0.00024873,2]
[391766539,1760787039406,-163.0,0.00024873,2]
[391766540,1760787039414,-170.0,0.00024873,2]
[391766541,1760787039423,-158.4,0.00024873,2]
[391766542,1760787039432,-156.0,0.00024873,2]
[391766543,1760787039441,-159.0,0.00024873,2]
[391766544,1760787039450,-168.0,0.00024873,2]
[391766545,1760787039459,-160.0,0.00024873,2]
[391766546,1760787039469,-160.0,0.00024873,2]
[391766547,1760787039480,-500.0,0.00024873,2]
[391766548,1760787039491,-500.0,0.00024873,2]
[391766549,1760787039502,-158.0,0.00024873,2]
[391766550,1760787039511,-500.0,0.00024873,2]
[391766551,1760787039521,-503.02205326,0.00024873,2]
[391766552,1760787039530,-500.0,0.00024873,2]
[391766553,1760787039539,-500.0,0.00024873,2]
[391766554,1760787039548,-500.0,0.00024873,2]
[391766555,1760787039556,-500.0,0.00024873,2]
[391766556,1760787039568,-823.77908852,0.00024885,2]
[391766557,1760787039578,-7235.19574624,0.0002489,2]
[391766558,1760787039587,-8536.76574762,0.00024897,2]
[391766559,1760787039597,-500.0,0.000249,2]
[391766560,1760787039610,-500.0,0.000249,2]
[391766561,1760787039619,-639.148264,0.000249,2]
[391766562,1760787039629,-376897.255048,0.000249,2]
[391766563,1760787039638,-500.0,0.00024931,2]
[391766564,1760787039648,-982.0,0.00024984,2]
[391766565,1760787039658,-2162.0,0.00024984,2]
[391766566,1760787039667,-631.0,0.00024984,2]
[391766567,1760787039676,-411.0,0.00024984,2]
[391766568,1760787039685,-423.986,0.00024984,2]
[391766569,1760787039695,-904.39946828,0.0002499,2]
[391766570,1760787039704,-4500.0,0.00025,2]
[391766571,1760787039713,-4202.0,0.0002502,2]
[391766572,1760787039723,-343.0,0.00025022,2]
[391766573,1760787039732,-208.16277843,0.00025044,2]
[391766574,1760787039741,-300.0,0.00025047,20]
[391766575,1760787039751,-300.0,0.00025047,20]
[391766576,1760787039760,-300.0,0.00025047,20]
[391766577,1760787039769,-300.0,0.00025047,20]
[391766578,1760787039778,-300.0,0.00025047,20]
[391766579,1760787039787,-300.0,0.00025047,20]
[391766580,1760787039797,-300.0,0.00025047,20]
[391766581,1760787039806,-300.0,0.00025047,20]
[391766582,1760787039815,-300.0,0.00025047,20]
[391766583,1760787039824,-300.0,0.00025047,20]
[391766584,1760787039833,-300.0,0.00025047,20]
[391766585,1760787039843,-300.0,0.00025047,20]
[391766586,1760787039852,-300.0,0.00025047,20]
[391766587,1760787039862,-300.0,0.00025047,20]
[391766588,1760787039871,-300.0,0.00025047,20]
[391766590,1760787039880,-600.0,0.00025047,20]
[391766591,1760787039888,-8536.76574762,0.00025109,2]
[391766592,1760787039899,-1000.0,0.00025121,2]
[391766593,1760787039908,-1000.0,0.00025121,2]
[391766594,1760787039918,-1000.0,0.00025121,2]
[391766595,1760787039927,-1000.0,0.00025121,2]
[391766596,1760787039936,-1000.0,0.00025121,2]
[391766597,1760787039945,-1000.0,0.00025121,2]
[391766598,1760787039954,-1000.0,0.00025121,2]
[391766599,1760787039963,-500.0,0.00025205,2]
[391766600,1760787039972,-199.0,0.00025205,7]
[391766602,1760787039981,-8536.76574762,0.00025321,2]
[391766603,1760787039990,-245.68615446,0.00025323,2]
[391766604,1760787039998,-442.23507803,0.00025323,2]
[391766605,1760787040008,-786.19569428,0.00025323,2]
[391766606,1760787040019,-1228.43077232,0.00025323,2]
[391766607,1760787040028,-1768.94031214,0.00025323,2]
[391766609,1760787040037,-2407.72431374,0.00025323,2]
[391766610,1760787040047,-3144.78277713,0.00025323,2]
[391766611,1760787040056,-3980.11570231,0.00025323,2]
[391766612,1760787040067,-4913.72308927,0.00025323,2]
[391766613,1760787040077,-5945.60493802,0.00025323,2]
[391766614,1760787040086,-7075.76124855,0.00025323,2]
[391766616,1760787040095,-8304.19202087,0.00025323,2]
[391766618,1760787040104,-9621.26635772,0.00025323,2]
[391766619,1760787040113,-160.0,0.00025346,2]
[391766620,1760787040122,-1000.0,0.00025421,2]
[391766621,1760787040131,-503.31910923,0.00025421,2]
[391766622,1760787040141,-1000.0,0.00025421,2]
[391766623,1760787040151,-1000.0,0.00025421,2]
[391766624,1760787040160,-1000.0,0.00025421,2]
[391766625,1760787040169,-854.2589148,0.00025433,2]
[391766626,1760787040178,-500.0,0.00025479,2]
[391766627,1760787040187,-199.0,0.00025479,8]
[391766628,1760787040197,-235.31444518,0.00025644,2]
[391766630,1760787040205,-168.0,0.00025646,2]
[391766631,1760787040216,-269.48245423,0.00025668,2]
[391766632,1760787040226,-1500.0,0.00025668,2]
[391766633,1760787040235,-1500.0,0.00025668,2]
[391766634,1760787040245,-1500.0,0.00025668,2]
[391766636,1760787040254,-1500.0,0.00025668,2]
[391766637,1760787040263,-1389.93223469,0.00025668,2]
[391766639,1760787040272,-1500.0,0.00025668,2]
[391766640,1760787040280,-519.89706419,0.00025753,2]
[391766641,1760787040290,-199.0,0.00025753,9]
[391766642,1760787040298,-260.0,0.00025894,2]
[391766643,1760787040308,-1442.06299186,0.00025968,2]
[391766645,1760787040317,-1500.0,0.00025968,2]
[391766647,1760787040326,-1500.0,0.00025968,2]
[391766649,1760787040335,-1500.0,0.00025968,2]
[391766651,1760787040344,-885.86649465,0.00025981,2]
[391766653,1760787040353,-1665.63309859,0.00026,30]
[391766655,1760787040362,-1500.0,0.00026,2]
[391766657,1760787040372,-1500.0,0.00026,2]
[391766659,1760787040381,-1500.0,0.00026,2]
[391766662,1760787040391,-1500.0,0.00026,2]
[391766663,1760787040400,-1500.0,0.00026,2]
[391766665,1760787040409,-1500.0,0.00026,2]
[391766667,1760787040419,-1500.0,0.00026,2]
[391766669,1760787040427,-1500.0,0.00026,2]
[391766671,1760787040437,-1500.0,0.00026,2]
[391766673,1760787040446,-1500.0,0.00026,2]
[391766675,1760787040455,-414.79,0.00026,2]
[391766677,1760787040464,-1500.0,0.00026,2]
[391766679,1760787040473,-168.195054,0.00026,3]
[391766681,1760787040483,-199.0,0.00026027,10]
[391766683,1760787040491,-600.0,0.00026038,2]
[391766685,1760787040500,-168.195054,0.00026051,10]
[391766687,1760787040509,-6115.2446961,0.00026056,2]
[391766689,1760787040519,-152.960521,0.00026098,20]
[391766691,1760787040528,-151.0,0.000261,18]
[391766693,1760787040537,-151.0,0.000262,11]
[391766695,1760787040546,-2000.0,0.00026216,2]
[391766697,1760787040556,-2000.0,0.00026216,2]
[391766699,1760787040565,-2000.0,0.00026216,2]
[391766701,1760787040575,-508.35601886,0.00026216,2]
[391766703,1760787040584,-2000.0,0.00026216,2]
[391766705,1760787040593,-168.0,0.00026237,2]
[391766707,1760787040602,-262.46611193,0.00026244,2]
[391766709,1760787040611,-462.510824,0.000263,10]
[391766711,1760787040620,-199.0,0.00026301,11]
[391766713,1760787040629,-600.0,0.00026309,2]
[391766715,1760787040638,-500.0,0.00026316,5]
[391766717,1760787040647,-360.0,0.00026442,2]
[391766719,1760787040657,-420.0,0.00026496,2]
[391766721,1760787040666,-151.0,0.000265,17]
[391766723,1760787040676,-152.960521,0.00026507,2]
[391766725,1760787040685,-2000.0,0.00026516,2]
[391766727,1760787040694,-2000.0,0.00026516,2]
[391766729,1760787040703,-2000.0,0.00026516,2]
[391766732,1760787040712,-918.64355495,0.00026529,2]
[391766733,1760787040722,-152.960521,0.0002654,20]
[391766736,1760787040731,-199.0,0.00026575,12]
[391766738,1760787040741,-500.0,0.0002659,5]
[391766740,1760787040750,-153.0,0.00026661,2]
[391766742,1760787040759,-153.0,0.00026661,2]
[391766743,1760787040768,-825.70828,0.00026676,2]
[391766746,1760787040778,-151.0,0.00026764,7]
[391766748,1760787040787,-151.0,0.00026764,7]
[391766750,1760787040796,-151.0,0.00026764,7]
[391766752,1760787040807,-2500.0,0.00026764,2]
[391766754,1760787040818,-2033.48936439,0.00026764,2]
[391766756,1760787040827,-2142.4002264,0.00026764,2]
[391766758,1760787040836,-221.85688514,0.00026764,2]
[391766760,1760787040845,-179.42,0.000268,14]
[391766762,1760787040855,-183.759,0.000268,14]
[391766764,1760787040864,-289.61777868,0.00026844,2]
[391766766,1760787040873,-199.0,0.00026849,13]
[391766768,1760787040883,-235.563625,0.00026864,7]
[391766770,1760787040891,-151.0,0.00026864,7]
[391766771,1760787040900,-151.0,0.00026864,7]
[391766774,1760787040910,-151.0,0.00026864,7]
[391766776,1760787040920,-151.0,0.00026864,7]
[391766778,1760787040929,-151.0,0.00026864,7]
[391766779,1760787040939,-151.0,0.00026864,7]
[391766781,1760787040948,-151.0,0.00026864,7]
[391766783,1760787040957,-177.662672,0.00026864,7]
[391766786,1760787040967,-151.0,0.00026864,7]
[391766787,1760787040975,-500.0,0.00026864,5]
[391766789,1760787040984,-150.0,0.00026873,2]
[391766791,1760787040994,-23842.06,0.000269,7]
[391766793,1760787041003,-160.0,0.000269,7]
[391766795,1760787041011,-151.0,0.000269,18]
[391766797,1760787041021,-151.0,0.000269,7]
[391766799,1760787041030,-192.4304022,0.000269,7]
[391766801,1760787041039,-151.0,0.000269,7]
[391766803,1760787041048,-151.0,0.000269,7]
[391766805,1760787041057,-151.0,0.000269,7]
[391766807,1760787041067,-151.0,0.000269,7]
[391766809,1760787041076,-151.0,0.000269,7]
[391766811,1760787041085,-151.0,0.000269,7]
[391766813,1760787041095,-151.0,0.000269,7]
[391766815,1760787041103,-151.0,0.000269,7]
[391766817,1760787041112,-151.0,0.000269,7]
[391766819,1760787041121,-180.734418,0.000269,7]
[391766821,1760787041130,-152.960521,0.00026941,2]
[391766823,1760787041139,-460.0,0.0002699,2]
[391766825,1760787041149,-896.45707677,0.00027034,2]
[391766827,1760787041159,-2500.0,0.00027064,2]
[391766829,1760787041168,-2500.0,0.00027064,2]
[391766831,1760787041178,-2500.0,0.00027064,2]
[391766833,1760787041187,-952.63336648,0.00027077,2]
[391766835,1760787041195,-150.0,0.000271,5]
[391766837,1760787041205,-1006.901418,0.000271,2]
[391766839,1760787041213,-212.90707932,0.00027123,2]
[391766841,1760787041223,-151.0,0.00027123,2]
[391766843,1760787041232,-199.0,0.00027123,14]
[391766845,1760787041241,-500.0,0.00027123,2]
[391766847,1760787041250,-500.0,0.00027123,2]
[391766849,1760787041259,-500.0,0.00027138,5]
[391766851,1760787041268,-155.8684396,0.00027178,2]
[391766853,1760787041277,-500.0,0.00027178,2]
[391766855,1760787041286,-500.0,0.00027178,2]
[391766857,1760787041295,-151.0,0.00027178,7]
[391766873,1760787041436,-151.0,0.00027178,7]
[391766875,1760787041447,-159.18806778,0.00027231,7]
[391766877,1760787041456,-500.0,0.00027233,2]
[391766879,1760787041465,-500.0,0.00027233,2]
[391766881,1760787041475,-500.0,0.00027237,2]
[391766883,1760787041484,-500.0,0.00027287,2]
[391766885,1760787041493,-500.0,0.00027287,2]
[391766887,1760787041502,-300.0,0.00027296,7]
[391766889,1760787041512,-151.0,0.000273,19]
[391766891,1760787041522,-612.272005,0.00027312,7]
[391766893,1760787041532,-2018.9308506,0.00027312,2]
[391766895,1760787041542,-500.0,0.00027342,2]
[391766897,1760787041552,-500.0,0.00027342,2]
[391766899,1760787041561,-1253.29,0.00027396,2]
[391766901,1760787041570,-500.0,0.00027397,2]
[391766903,1760787041579,-500.0,0.00027397,2]
[391766905,1760787041588,-199.0,0.00027397,15]
[391766907,1760787041598,-150.0,0.00027397,5]
[391766910,1760787041611,-500.0,0.00027397,5]
[391766912,1760787041621,-3167.1,0.000274,2]
[391766914,1760787041630,-2786.36,0.000274,2]
[391766916,1760787041639,-151.0,0.00027412,30]
[391766918,1760787041651,-151.0,0.00027412,30]
[391766920,1760787041660,-151.0,0.00027412,30]
[391766922,1760787041669,-268.973057,0.00027412,30]
[391766924,1760787041679,-500.0,0.00027412,15]
[391766926,1760787041689,-250.0,0.00027421,5]
[391766928,1760787041698,-152.960521,0.00027422,7]
[391766930,1760787041707,-316.76944543,0.00027444,2]
[391766932,1760787041717,-500.0,0.00027452,2]
[391766934,1760787041726,-16143.73293493,0.000275,2]
[391766936,1760787041735,-310.97293558,0.000275,2]
[391766938,1760787041745,-151.0,0.000275,30]
[391766939,1760787041754,-151.0,0.000275,30]
[391766942,1760787041764,-151.0,0.000275,30]
[391766944,1760787041773,-151.0,0.000275,30]
[391766946,1760787041787,-151.0,0.000275,30]
[391766948,1760787041803,-151.0,0.000275,30]
[391766949,1760787041821,-500.0,0.00027507,2]
[391766951,1760787041830,-500.0,0.00027511,5]
[391766953,1760787041840,-150.0,0.00027536,2]
[391766955,1760787041849,-560.0,0.00027538,2]
[391766956,1760787041858,-720.0,0.00027552,30]
[391766957,1760787041867,-397.77737133,0.00027561,2]
[391766958,1760787041878,-3000.0,0.00027612,5]
[391766959,1760787041887,-3000.0,0.00027612,5]
[391766960,1760787041897,-824.94049382,0.00027612,5]
[391766961,1760787041906,-179.65864857,0.00027619,2]
[391766962,1760787041915,-987.88080104,0.00027625,2]
[391766963,1760787041925,-1364.4955284,0.0002763,2]
[391766964,1760787041934,-1253.29,0.0002767,5]
[391766965,1760787041943,-221.23451577,0.00027671,2]
[391766966,1760787041952,-199.0,0.00027671,16]
[391766967,1760787041961,-515.79,0.00027686,15]
[391766968,1760787041970,-151.0,0.000277,14]
[391766969,1760787041979,-5000.0,0.00027773,2]
[391766970,1760787041988,-500.0,0.00027778,7]
[391766971,1760787041997,-157.649122,0.00027781,30]
[391766972,1760787042007,-500.0,0.00027785,5]
[391766973,1760787042019,-160.0,0.000278,3]
[391766974,1760787042028,-150.0,0.00027819,2]
[391766975,1760787042037,-500.0,0.00027884,7]
[391766976,1760787042047,-1338.45472331,0.00027887,2]
[391766977,1760787042056,-151.0,0.0002789,7]
[391766978,1760787042065,-151.0,0.0002789,30]
[391766979,1760787042074,-151.0,0.0002789,30]
[391766980,1760787042083,-277.113504,0.0002789,30]
[391766981,1760787042092,-151.0,0.0002789,30]
[391766982,1760787042101,-503.01623366,0.00027894,7]
[391766983,1760787042110,-152.960521,0.0002794,7]
[391766984,1760787042119,-1253.29,0.00027944,5]
[391766985,1760787042129,-199.0,0.00027945,17]
[391766986,1760787042140,-250.0,0.00027945,5]
[391766987,1760787042150,-1001.62621845,0.00027945,5]
[391766988,1760787042159,-350.0,0.00027968,5]
[391766989,1760787042168,-1000.0,0.0002798,2]
[391766990,1760787042179,-304.4601057,0.00027981,2]
[391766991,1760787042189,-982.0,0.00027984,2]
[391766992,1760787042199,-2162.0,0.00027984,2]
[391766993,1760787042208,-631.0,0.00027984,2]
[391766994,1760787042219,-411.0,0.00027984,2]
[391766995,1760787042230,-411.0,0.00027984,2]
[391766996,1760787042239,-9000.0,0.00028,2]
[391766997,1760787042248,-10332.37492762,0.00028,5]
[391766998,1760787042257,-25000.0,0.00028,3]
[391766999,1760787042266,-218.96126238,0.00028,2]
[391767000,1760787042275,-11105.62476459,0.00028,4]